bitfinex-derivatives/quotes_BTCF0:USTF0_20250811
["timestamp","ask_amount","ask_price","bid_price","bid_amount"]
[1754949688163,1.34155481,118700.0,118690.0,0.79732]
[1754949688357,1.34165481,118700.0,118690.0,0.79742]
[1754949688759,1.34165481,118700.0,118690.0,0.8816655]
[1754949689263,1.34165481,118700.0,118690.0,0.9138455]
[1754949689464,1.34165481,118700.0,118690.0,0.9500055]
[1754949689665,1.34165481,118700.0,118690.0,0.9596755]
[1754949690164,1.34165481,118700.0,118690.0,0.1623555]
[1754949690356,1.34165481,118700.0,118690.0,0.9587155]
[1754949694855,1.24364915,118700.0,118690.0,0.9587155]
[1754949695464,1.24354915,118700.0,118690.0,0.9585155]
[1754949695966,1.24354915,118700.0,118690.0,0.9586155]
[1754949696467,0.0842455,118690.0,118680.0,0.10298885]
[1754949696658,0.0842455,118690.0,118680.0,0.89872885]
[1754949696659,0.79729279,118690.0,118680.0,0.89872885]
[1754949696860,0.83007279,118690.0,118680.0,0.81451655]
[1754949697058,0.83007279,118690.0,118680.0,0.01883655]
[1754949697260,0.5231655,118690.0,118680.0,0.0001]
[1754949697557,0.83007279,118690.0,118680.0,0.0001]
[1754949698667,0.88286163,118690.0,118680.0,0.0843526]
[1754949698968,0.88286163,118690.0,118680.0,0.0001]
[1754949699160,0.88286163,118690.0,118680.0,0.0843526]
[1754949699465,0.88286163,118690.0,118680.0,0.0001]
[1754949700864,0.88286163,118690.0,118680.0,0.0843526]
[1754949702670,0.88286163,118690.0,118680.0,0.0001]
[1754949703172,0.88286163,118690.0,118680.0,0.0843526]
[1754949704472,0.5231655,118690.0,118680.0,0.0843526]
[1754949704666,0.88286163,118690.0,118680.0,0.0843526]
[1754949704974,0.88286163,118690.0,118680.0,0.1165326]
[1754949706274,0.88286163,118690.0,118680.0,0.03228]
[1754949706571,0.88286163,118690.0,118680.0,0.0001]
[1754949707672,0.95039887,118690.0,118680.0,0.0001]
[1754949709372,0.95039887,118690.0,118660.0,0.1164463]
[1754949709373,0.0842597,118670.0,118660.0,0.1164463]
[1754949709672,0.0842597,118670.0,118650.0,0.64651847]
[1754949709673,0.0842668,118660.0,118650.0,0.31884847]
[1754949709875,0.52497293,118660.0,118650.0,1.14498847]
[1754949712878,0.52497293,118660.0,118650.0,1.14798847]
[1754949713177,0.52507293,118660.0,118650.0,1.14808847]
[1754949713577,0.52507293,118660.0,118650.0,1.15008847]
[1754949715078,0.52507293,118660.0,118650.0,1.07266847]
[1754949715279,0.52507293,118660.0,118650.0,1.10579847]
[1754949715474,0.52507293,118660.0,118650.0,1.11966847]
[1754949715676,0.88587293,118660.0,118650.0,1.07266847]
[1754949715876,0.52507293,118660.0,118650.0,1.10579847]
[1754949716382,0.88587293,118660.0,118650.0,0.93725277]
[1754949716577,0.88587293,118660.0,118650.0,0.81984887]
[1754949716881,1.41412106,118660.0,118650.0,0.02412887]
[1754949717080,1.05442493,118660.0,118650.0,0.02412887]
[1754949717284,1.85018493,118660.0,118650.0,0.02412887]
[1754949717480,1.87418695,118660.0,118650.0,0.02412887]
[1754949717680,1.87418695,118660.0,118650.0,0.0051]
[1754949718771,1.82164666,118660.0,118650.0,0.0051]
[1754949719175,1.8053798,118660.0,118650.0,0.0051]
[1754949719471,1.00188464,118660.0,118650.0,0.0051]
[1754949720785,0.83333264,118660.0,118650.0,0.0893738]
[1754949720989,0.83333264,118660.0,118650.0,0.1667938]
[1754949721172,0.78490244,118660.0,118650.0,0.1667938]
[1754949721372,0.81859244,118660.0,118650.0,0.1667938]
[1754949721578,0.47253244,118660.0,118650.0,0.1667938]
[1754949721881,0.30725584,118660.0,118650.0,0.1667938]
[1754949722080,0.39152244,118660.0,118650.0,0.1363738]
[1754949722286,0.83333244,118660.0,118650.0,0.1575138]
[1754949722584,0.83333244,118660.0,118650.0,0.1667938]
[1754949722887,0.47253244,118660.0,118650.0,0.1667938]
[1754949723182,0.83333244,118660.0,118650.0,0.1667938]
[1754949723486,0.61243244,118660.0,118650.0,0.1575138]
[1754949723682,0.61243244,118660.0,118650.0,0.1667938]
[1754949724695,0.97323244,118660.0,118650.0,0.1667938]
[1754949725187,0.97323244,118660.0,118650.0,0.1225037]
[1754949725792,0.97323244,118660.0,118650.0,0.0051]
[1754949725990,0.97323244,118660.0,118650.0,0.0893737]
[1754949726988,0.97323244,118660.0,118650.0,0.1667937]
[1754949727985,0.61243244,118660.0,118650.0,0.1667937]
[1754949728690,0.1653766,118660.0,118650.0,0.1667937]
[1754949728890,0.47253244,118660.0,118650.0,0.1667937]
[1754949729795,0.1653766,118660.0,118650.0,0.1667937]
[1754949730090,0.0001,118660.0,118650.0,0.47394954]
[1754949730478,0.0001,118660.0,118650.0,0.52394954]
[1754949730680,0.0001,118660.0,118650.0,1.05330153]
[1754949730882,0.01712639,118670.0,118660.0,0.0842667]
[1754949731186,0.01712639,118670.0,118660.0,1.62908254]
[1754949731889,0.01712639,118670.0,118660.0,1.3219267]
[1754949732079,0.01722639,118670.0,118660.0,1.3220267]
[1754949732282,0.01722639,118670.0,118660.0,1.3240267]
[1754949733086,0.01722639,118670.0,118660.0,1.3250267]
[1754949735295,0.0001,118670.0,118660.0,1.3250267]
[1754949739390,0.03148,118670.0,118660.0,0.5255867]
[1754949739701,0.92325799,118670.0,118660.0,0.0031]
[1754949739991,0.0842732,118650.0,118640.0,0.6979161]
[1754949740193,0.0842803,118640.0,118630.0,0.683818]
[1754949740385,0.56237929,118640.0,118630.0,1.0004309]
[1754949740585,0.56237929,118640.0,118630.0,0.79844]
[1754949741085,0.56237929,118640.0,118630.0,0.8827274]
[1754949741287,0.56247929,118640.0,118630.0,0.8828274]
[1754949741488,2.06247929,118640.0,118630.0,0.9162474]
[1754949742994,2.04606929,118640.0,118630.0,0.9242474]
[1754949743591,2.18596929,118640.0,118630.0,0.9242474]
[1754949743886,2.04606929,118640.0,118630.0,0.9767474]
[1754949744088,2.04606929,118640.0,118630.0,0.9986774]
[1754949745597,2.04606929,118640.0,118630.0,0.9758074]
[1754949745895,2.04606929,118640.0,118630.0,0.9619374]
[1754949746290,2.40686929,118640.0,118630.0,0.9619374]
[1754949746690,2.40686929,118640.0,118630.0,0.8908284]
[1754949746887,2.40686929,118640.0,118630.0,0.89027905]
[1754949747494,2.40686929,118640.0,118630.0,0.80599065]
[1754949747895,2.40686929,118640.0,118630.0,0.89027915]
[1754949748391,2.04606929,118640.0,118630.0,0.89027915]
[1754949748596,2.40686929,118640.0,118630.0,0.89027915]
[1754949749693,1.5937603,118640.0,118630.0,1.00799915]
[1754949749896,1.5001,118640.0,118630.0,1.00799915]
[1754949750699,0.0001,118640.0,118630.0,1.00799915]
[1754949750902,0.0001,118640.0,118630.0,1.36879915]
[1754949751303,0.35974899,118640.0,118630.0,1.36879915]
[1754949751602,0.56248039,118640.0,118630.0,1.00963915]
[1754949752005,0.92328039,118640.0,118630.0,0.89211915]
[1754949752303,0.92328039,118640.0,118630.0,0.80783065]
[1754949752603,0.92328039,118640.0,118630.0,0.89211915]
[1754949753103,0.92328039,118640.0,118630.0,1.00983915]
[1754949753508,0.56248039,118640.0,118630.0,0.00815065]
[1754949753696,0.56248039,118640.0,118630.0,0.80843065]
[1754949753697,1.06318039,118640.0,118630.0,0.80843065]
[1754949754099,0.7035314,118640.0,118630.0,0.80843065]
[1754949754300,1.06318039,118640.0,118630.0,0.89271915]
[1754949755804,0.70238039,118640.0,118630.0,0.92613915]
[1754949756001,0.56248039,118640.0,118630.0,1.01043915]
[1754949757008,0.92328039,118640.0,118630.0,0.90847915]
[1754949757208,0.92328039,118640.0,118630.0,0.09243915]
[1754949757403,0.92328039,118640.0,118630.0,0.89283915]
[1754949757908,0.92328039,118640.0,118630.0,0.80855065]
[1754949758104,0.92328039,118640.0,118630.0,0.00815065]
[1754949760411,0.92328039,118640.0,118630.0,0.21015915]
[1754949760800,0.92328039,118640.0,118630.0,0.04157065]
[1754949761001,0.92328039,118640.0,118630.0,0.00815065]
[1754949761507,1.72332039,118640.0,118630.0,0.00815065]
[1754949761906,1.73094714,118640.0,118630.0,0.00815065]
[1754949762605,0.084296,118620.0,118610.0,0.84729]
[1754949762801,0.92319499,118620.0,118610.0,0.84729]
[1754949763005,0.92319499,118620.0,118610.0,0.9315931]
[1754949763309,0.202746,118620.0,118610.0,0.9315931]
[1754949763612,0.56239509,118620.0,118610.0,1.0020231]
[1754949763806,0.0001,118620.0,118610.0,1.3679231]
[1754949764513,0.0001,118620.0,118610.0,1.3729231]
[1754949767211,0.44404449,118620.0,118610.0,0.5729231]
[1754949767514,0.56249449,118620.0,118610.0,1.3738031]
[1754949767710,0.56249449,118620.0,118610.0,0.2121231]
[1754949767914,0.56249449,118620.0,118610.0,1.0124826]
[1754949769420,0.92329449,118620.0,118610.0,1.0124828]
[1754949769914,0.56249449,118620.0,118610.0,1.0124828]
[1754949771221,0.56249449,118620.0,118610.0,1.0104828]
[1754949771415,0.1321855,118620.0,118610.0,1.3712828]
[1754949771621,0.0843955,118620.0,118610.0,1.3712828]
[1754949772018,0.0843955,118620.0,118610.0,1.3682828]
[1754949773112,0.0001,118620.0,118610.0,1.3682828]
[1754949773320,0.0843957,118620.0,118610.0,1.3682828]
[1754949775825,0.0001,118620.0,118610.0,1.3682828]
[1754949776521,0.06789508,118630.0,118610.0,1.5367843]
[1754949776826,0.57068716,118640.0,118630.0,0.0842891]
[1754949776827,0.65497506,118640.0,118630.0,0.0842891]
[1754949777030,0.65497506,118640.0,118630.0,1.0056691]
[1754949777222,0.48640186,118640.0,118630.0,1.3664691]
[1754949777524,0.46289166,118640.0,118630.0,1.3664691]
[1754949777823,0.37870976,118640.0,118630.0,1.3665691]
[1754949778025,0.01906077,118640.0,118630.0,1.3665691]
[1754949779825,0.01906077,118640.0,118630.0,1.3675691]
[1754949780616,0.08701749,118640.0,118630.0,1.3675691]
[1754949780817,0.17129879,118640.0,118630.0,1.3675691]
[1754949781324,0.08701749,118640.0,118630.0,1.3675691]
[1754949784722,0.06805672,118640.0,118630.0,1.3675691]
[1754949789032,0.0001,118640.0,118630.0,1.3675691]
[1754949790729,0.06832185,118650.0,118630.0,2.14856389]
[1754949791033,0.04088804,118670.0,118660.0,0.0842671]
[1754949791224,0.12514804,118670.0,118660.0,1.3639671]
[1754949792032,0.48479703,118670.0,118660.0,1.3639671]
[1754949792229,0.48789703,118670.0,118660.0,1.3640671]
[1754949793123,0.52175703,118670.0,118660.0,1.3640671]
[1754949793335,0.53669703,118670.0,118660.0,1.3640671]
[1754949793534,0.56297703,118670.0,118660.0,1.3640671]
[1754949793838,0.58522703,118670.0,118660.0,1.3640671]
[1754949794136,0.58622703,118670.0,118660.0,1.3640671]
[1754949794338,0.50196703,118670.0,118660.0,1.3640671]
[1754949794637,0.65317758,118670.0,118660.0,1.37195109]
[1754949795831,0.56891758,118670.0,118660.0,1.37195109]
[1754949796042,0.20926859,118670.0,118660.0,1.37195109]
[1754949796232,0.56891758,118670.0,118660.0,1.37195109]
[1754949796437,0.44707758,118670.0,118660.0,1.37195109]
[1754949796639,0.17168859,118670.0,118660.0,1.37195109]
[1754949796833,0.19519859,118670.0,118660.0,1.37195109]
[1754949797034,0.59845758,118670.0,118660.0,1.37195109]
[1754949797237,0.61339758,118670.0,118660.0,1.37195109]
[1754949797433,0.65317758,118670.0,118660.0,1.37195109]
[1754949798538,0.65317748,118670.0,118660.0,1.37195109]
[1754949798734,0.56459748,118670.0,118660.0,1.37195109]
[1754949799334,0.59724748,118670.0,118660.0,1.37195109]
[1754949799839,0.61207748,118670.0,118660.0,1.37195109]
[1754949800136,0.62756748,118670.0,118660.0,1.37195109]
[1754949800839,0.54330758,118670.0,118660.0,1.37195109]
[1754949801150,0.62756758,118670.0,118660.0,1.37195109]
[1754949802043,0.54330758,118670.0,118660.0,1.37195109]
[1754949802436,0.08742859,118670.0,118660.0,1.37195109]
[1754949803036,0.20467859,118670.0,118660.0,1.37195109]
[1754949803244,0.29090859,118670.0,118660.0,1.37195109]
[1754949803944,0.65055758,118670.0,118660.0,1.37195109]
[1754949804645,0.59786416,118670.0,118660.0,1.37195109]
[1754949805446,0.51360416,118670.0,118660.0,1.37195109]
[1754949806848,0.59786416,118670.0,118660.0,1.37043109]
[1754949807140,0.08742859,118670.0,118660.0,1.67738666]
[1754949807347,0.01847804,118670.0,118660.0,1.37043109]
[1754949807843,0.32543361,118670.0,118660.0,0.57395109]
[1754949808046,0.13769804,118670.0,118660.0,1.37071109]
[1754949808254,0.51408361,118670.0,118660.0,1.37071109]
[1754949808556,0.59603087,118670.0,118660.0,1.37071109]
[1754949808735,0.1340753,118670.0,118660.0,1.37071109]
[1754949808940,0.47681087,118670.0,118660.0,1.37071109]
[1754949809140,0.53336087,118670.0,118660.0,1.37071109]
[1754949809543,0.59603087,118670.0,118660.0,1.3631471]
[1754949809745,1.09683087,118670.0,118660.0,0.0001]
[1754949810044,1.09683087,118670.0,118660.0,0.0843669]
[1754949810844,0.73603087,118670.0,118660.0,0.8825269]
[1754949811041,0.73603087,118670.0,118660.0,0.9682769]
[1754949811348,0.73603087,118670.0,118660.0,1.0024369]
[1754949812248,1.09683087,118670.0,118660.0,0.9327769]
[1754949812848,1.09683087,118670.0,118660.0,0.9466469]
[1754949813348,0.73603087,118670.0,118660.0,0.9466469]
[1754949813946,0.73603087,118670.0,118660.0,0.9924769]
[1754949814450,1.09683087,118670.0,118660.0,0.9924769]
[1754949815141,0.73603087,118670.0,118660.0,1.0024369]
[1754949815343,0.50139087,118670.0,118660.0,1.3632369]
[1754949815650,0.0855953,118670.0,118660.0,1.3632369]
[1754949816236,0.39255087,118670.0,118660.0,1.3632369]
[1754949816448,0.0855953,118670.0,118660.0,1.3632369]
[1754949816642,0.55970507,118690.0,118680.0,0.0842529]
[1754949816953,0.67892507,118690.0,118680.0,1.3637229]
[1754949818151,0.51042137,118690.0,118680.0,1.3637229]
[1754949818347,0.51052137,118690.0,118680.0,1.3638229]
[1754949818547,0.51252137,118690.0,118680.0,1.3638229]
[1754949818753,0.56516803,118690.0,118680.0,1.3638229]
[1754949819254,0.56516803,118690.0,118680.0,1.37151382]
[1754949819454,0.56616803,118690.0,118680.0,1.37151382]
[1754949820654,0.6319262,118690.0,118680.0,1.37151382]
[1754949821447,0.6319262,118690.0,118680.0,1.3638229]
[1754949823956,0.6319262,118690.0,118680.0,0.5267529]
[1754949824255,0.9927262,118690.0,118680.0,0.8835529]
[1754949824646,0.9927262,118690.0,118680.0,0.0001]
[1754949824956,0.6319262,118690.0,118680.0,0.0843529]
[1754949825256,0.9927262,118690.0,118680.0,0.0843529]
[1754949826758,0.9927262,118690.0,118680.0,0.1659529]
[1754949826953,0.9927262,118690.0,118680.0,0.2040229]
[1754949827458,0.6319262,118690.0,118680.0,0.2040229]
[1754949828959,0.7719262,118690.0,118680.0,0.2040229]
[1754949831656,0.41232397,118690.0,118680.0,0.2040229]
[1754949831857,0.7719262,118690.0,118680.0,0.2040229]
[1754949832259,0.7719262,118690.0,118680.0,0.5648229]
[1754949832963,0.32807817,118690.0,118680.0,0.5648229]
[1754949833266,0.09343817,118690.0,118680.0,0.5648229]
[1754949833759,0.06885817,118690.0,118680.0,0.5648229]
[1754949833960,0.01908964,118710.0,118680.0,1.09293713]
[1754949834162,0.01908964,118710.0,118700.0,0.4450387]
[1754949834358,0.04294964,118710.0,118700.0,0.5644387]
[1754949834664,0.10077964,118710.0,118700.0,0.5644387]
[1754949835258,0.10277964,118710.0,118700.0,0.5644387]
[1754949835565,0.10287964,118710.0,118700.0,0.5645387]
[1754949836568,0.10487964,118710.0,118700.0,0.5645387]
[1754949836768,0.05476964,118710.0,118700.0,0.5645387]
[1754949837065,0.02418964,118710.0,118700.0,0.5645387]
[1754949838361,0.0031,118710.0,118700.0,0.5655387]
[1754949838567,0.0001,118710.0,118700.0,0.58379536]
[1754949839168,0.0001,118710.0,118700.0,0.58479536]
[1754949839870,0.0001,118710.0,118700.0,0.58279536]
[1754949840170,0.0001,118710.0,118700.0,0.58679536]
[1754949840764,0.0001,118710.0,118700.0,0.58379536]
[1754949840968,0.56311383,118710.0,118700.0,1.38123536]
[1754949841564,0.56311383,118710.0,118700.0,0.58479536]
[1754949841770,0.56311383,118710.0,118700.0,0.50318536]
[1754949841967,0.56311383,118710.0,118700.0,1.29758536]
[1754949842164,0.56311383,118710.0,118700.0,1.36970536]
[1754949842467,0.0940516,118710.0,118700.0,1.36970536]
[1754949842660,0.1554016,118710.0,118700.0,1.36970536]
[1754949842859,0.56311383,118710.0,118700.0,1.36970536]
[1754949843260,0.56311383,118710.0,118700.0,1.29343536]
[1754949843458,0.56311383,118710.0,118700.0,0.81375666]
[1754949843459,0.92391383,118710.0,118700.0,0.81375666]
[1754949843658,1.28351606,118710.0,118700.0,0.81375666]
[1754949843858,0.92391383,118710.0,118700.0,0.01735666]
[1754949844371,1.28351606,118710.0,118700.0,0.01735666]
[1754949844572,0.92491383,118710.0,118700.0,0.01735666]
[1754949845859,0.92691383,118710.0,118700.0,0.01735666]
[1754949846474,0.92691383,118710.0,118700.0,0.15244536]
[1754949846673,0.56611383,118710.0,118700.0,0.22099536]
[1754949846875,0.56711383,118710.0,118700.0,0.22099536]
[1754949847469,0.56811383,118710.0,118700.0,0.22099536]
[1754949847669,2.06811383,118710.0,118700.0,0.22099536]
[1754949848277,0.1613016,118710.0,118700.0,1.01739536]
[1754949848587,0.0893316,118710.0,118700.0,1.37819536]
[1754949848876,0.2085116,118710.0,118700.0,1.01739536]
[1754949849276,0.56811383,118710.0,118700.0,1.01739536]
[1754949850680,0.56811383,118710.0,118700.0,0.22099536]
[1754949850878,0.56811383,118710.0,118700.0,0.97987536]
[1754949851078,0.56811383,118710.0,118700.0,1.01735536]
[1754949851975,0.48388223,118710.0,118700.0,1.01735536]
[1754949852171,0.1365416,118710.0,118700.0,1.37815536]
[1754949852972,0.05231,118710.0,118700.0,1.37815536]
[1754949853176,0.0051,118710.0,118700.0,1.37815536]
[1754949853580,0.1131916,118710.0,118700.0,1.37815536]
[1754949853772,0.51521984,118710.0,118700.0,1.01735536]
[1754949854776,0.87601984,118710.0,118700.0,0.01735666]
[1754949854972,1.01601984,118710.0,118700.0,0.01735666]
[1754949856777,1.06892252,118710.0,118700.0,0.10159536]
[1754949856978,1.06892252,118710.0,118700.0,0.13623536]
[1754949859277,1.06892252,118710.0,118700.0,0.10159536]
[1754949859475,1.06892252,118710.0,118700.0,0.18253536]
[1754949859680,0.70812252,118710.0,118700.0,0.18253536]
[1754949859880,0.70812252,118710.0,118700.0,0.17304536]
[1754949860083,1.06892252,118710.0,118700.0,0.17304536]
[1754949860279,0.70812252,118710.0,118700.0,0.17304536]
[1754949862287,0.70712252,118710.0,118700.0,0.17304536]
[1754949862985,0.70412252,118710.0,118700.0,0.10159536]
[1754949863179,0.70612252,118710.0,118700.0,0.0843387]
[1754949863379,0.70612252,118710.0,118700.0,0.0001]
[1754949863579,0.56612252,118710.0,118700.0,0.0001]
[1754949863787,0.56512252,118710.0,118700.0,0.0001]
[1754949864078,0.0842458,118690.0,118680.0,1.13301342]
[1754949864274,0.49063672,118690.0,118680.0,1.21726552]
[1754949864475,0.55966672,118690.0,118680.0,1.21726552]
[1754949864679,0.55966672,118690.0,118680.0,1.066]
[1754949864874,0.55966672,118690.0,118680.0,1.09875]
[1754949866081,0.55966672,118690.0,118680.0,1.11239]
[1754949866279,0.55976672,118690.0,118680.0,1.11249]
[1754949866581,0.55976672,118690.0,118680.0,1.1359]
[1754949868289,0.55976672,118690.0,118680.0,1.4967]
[1754949868485,0.2001558,118690.0,118680.0,1.4967]
[1754949868985,0.55976672,118690.0,118680.0,1.4967]
[1754949869680,0.0843458,118690.0,118680.0,1.4967]
[1754949869884,0.1159458,118690.0,118680.0,1.4967]
[1754949870084,0.55976672,118690.0,118680.0,1.11249]
[1754949870279,0.55976672,118690.0,118680.0,1.11245]
[1754949870685,0.55976672,118690.0,118680.0,1.13586]
[1754949871382,0.55976672,118690.0,118680.0,0.33958]
[1754949871687,0.55976672,118690.0,118680.0,1.18325]
[1754949872684,0.55976672,118690.0,118680.0,1.0989979]
[1754949872877,0.56076672,118690.0,118680.0,1.0989979]
[1754949873590,0.56076672,118690.0,118680.0,0.0170288]
[1754949873888,0.92156672,118690.0,118680.0,0.0843529]
[1754949874393,0.92156672,118690.0,118680.0,0.03285]
[1754949875089,0.92156672,118690.0,118680.0,0.0001]
[1754949875494,1.71784672,118690.0,118680.0,0.0001]
[1754949875878,0.08426,118670.0,118660.0,0.8131563]
[1754949876084,0.92048092,118670.0,118660.0,0.8974234]
[1754949876287,0.92048092,118670.0,118660.0,0.9453834]
[1754949876586,0.92048092,118670.0,118660.0,0.2183334]
[1754949876786,0.86787586,118670.0,118660.0,0.2183334]
[1754949877382,0.86787586,118670.0,118660.0,0.2193334]
[1754949877588,0.86797586,118670.0,118660.0,0.2194334]
[1754949877788,0.86797586,118670.0,118660.0,0.2204334]
[1754949878795,0.50717586,118670.0,118660.0,0.5812334]
[1754949879191,0.50717586,118670.0,118660.0,0.2204334]
[1754949879396,0.50717586,118670.0,118660.0,0.5812334]
[1754949882195,0.43814586,118670.0,118660.0,0.5812334]
[1754949882397,0.46066586,118670.0,118660.0,0.5812334]
[1754949882599,0.49274586,118670.0,118660.0,0.5812334]
[1754949883093,0.09344,118670.0,118660.0,0.5812334]
[1754949883488,0.13252,118670.0,118660.0,0.5812334]
[1754949883694,0.20017,118670.0,118660.0,0.5812334]
[1754949883895,0.50717586,118670.0,118660.0,0.5812334]
[1754949885194,0.30710586,118670.0,118660.0,0.5812334]
[1754949885403,0.0001,118670.0,118660.0,0.5812334]
[1754949885900,0.0001,118670.0,118660.0,0.88823926]
[1754949886300,0.0001,118670.0,118660.0,0.5812334]
[1754949890105,0.0001,118670.0,118660.0,0.88823926]
[1754949890504,0.0001,118670.0,118660.0,0.5812334]
[1754949890904,0.08436,118670.0,118660.0,0.5812334]
[1754949891107,0.41621586,118670.0,118660.0,0.5812334]
[1754949891404,0.44820586,118670.0,118660.0,0.5812334]
[1754949891602,0.47898586,118670.0,118660.0,0.5812334]
[1754949891797,0.51097586,118670.0,118660.0,0.5812334]
[1754949892198,0.11971,118670.0,118660.0,0.5812334]
[1754949892404,0.51097586,118670.0,118660.0,0.5812334]
[1754949894304,0.51097586,118670.0,118660.0,0.5816734]
[1754949894504,0.51097586,118670.0,118660.0,0.5580534]
[1754949894709,0.51097586,118670.0,118660.0,1.3541334]
[1754949894911,0.51097586,118670.0,118660.0,1.3779834]
[1754949895602,0.87177586,118670.0,118660.0,0.9322534]
[1754949896208,0.87177586,118670.0,118660.0,0.9845334]
[1754949896508,0.87177586,118670.0,118660.0,1.0083834]
[1754949896709,0.87177586,118670.0,118660.0,1.0182734]
[1754949897904,0.87177586,118670.0,118660.0,0.9944234]
[1754949898111,0.87177586,118670.0,118660.0,0.8993234]
[1754949898712,0.87177586,118670.0,118660.0,0.8150563]
[1754949899011,0.87177586,118670.0,118660.0,0.8993234]
[1754949899507,0.87177586,118670.0,118660.0,0.9845334]
[1754949899707,0.87177586,118670.0,118660.0,1.0182734]
[1754949900612,0.87177586,118670.0,118660.0,0.9944234]
[1754949900808,0.07324,118670.0,118660.0,1.0182734]
[1754949901011,0.08436,118670.0,118660.0,1.68607926]
[1754949901207,0.39136586,118670.0,118660.0,1.3790734]
[1754949901612,0.47173586,118670.0,118660.0,1.3790734]
[1754949901908,0.20397,118670.0,118660.0,1.3790734]
[1754949902108,0.51097586,118670.0,118660.0,1.3790734]
[1754949902706,0.51097586,118670.0,118660.0,0.2221934]
[1754949902908,0.51097586,118670.0,118660.0,1.0181534]
[1754949904516,0.51097586,118670.0,118660.0,1.16941892]
[1754949905207,0.51097586,118670.0,118660.0,1.0181534]
[1754949906116,0.51097586,118670.0,118660.0,0.9803934]
[1754949906324,0.51097586,118670.0,118660.0,1.0181134]
[1754949910219,0.87177586,118670.0,118660.0,0.8631563]
[1754949910812,0.51097586,118670.0,118660.0,0.8631563]
[1754949911009,0.87177586,118670.0,118660.0,0.9803534]
[1754949911216,0.87177586,118670.0,118660.0,1.0180734]
[1754949914512,0.87177586,118670.0,118660.0,0.8148563]
[1754949914913,0.87177586,118670.0,118660.0,0.9704633]
[1754949915115,0.87177586,118670.0,118660.0,1.0180733]
[1754949915319,0.87177586,118670.0,118660.0,0.9338063]
[1754949915518,0.87177586,118670.0,118660.0,1.0180733]
[1754949916919,0.56477,118670.0,118660.0,1.0180733]
[1754949917119,0.87177586,118670.0,118660.0,1.0180733]
[1754949917917,0.51097586,118670.0,118660.0,1.0180733]
[1754949918422,0.0001,118670.0,118660.0,1.0180733]
[1754949918617,0.0843599,118670.0,118660.0,1.3788733]
[1754949919721,0.51155576,118670.0,118660.0,1.3788733]
[1754949920222,0.87235576,118670.0,118660.0,1.0180733]
[1754949920521,0.87235576,118670.0,118660.0,1.0173133]
[1754949922410,0.51155576,118670.0,118660.0,1.0173133]
[1754949924227,0.2045499,118670.0,118660.0,1.0173133]
[1754949924425,0.51155576,118670.0,118660.0,1.0173133]
[1754949924724,0.51155576,118670.0,118660.0,1.3781133]
[1754949925734,0.1095399,118670.0,118660.0,1.3781133]
[1754949926028,0.41654576,118670.0,118660.0,1.0173133]
[1754949926218,0.44087576,118670.0,118660.0,1.0173133]
[1754949926412,0.51155576,118670.0,118660.0,1.0173133]
[1754949926724,0.51155576,118670.0,118660.0,0.9802733]
[1754949926920,0.87235576,118670.0,118660.0,1.0173133]
[1754949927115,0.51155576,118670.0,118660.0,1.0173133]
[1754949927321,0.51155576,118670.0,118660.0,1.000437]
[1754949927521,0.87235576,118670.0,118660.0,1.000437]
[1754949928127,0.51155576,118670.0,118660.0,1.000437]
[1754949928326,0.87235576,118670.0,118660.0,1.000437]
[1754949928829,0.51155576,118670.0,118660.0,1.000437]
[1754949929032,0.2045499,118670.0,118660.0,1.000437]
[1754949929330,0.51155576,118670.0,118660.0,1.000437]
[1754949929927,0.87235576,118670.0,118660.0,1.000437]
[1754949930121,0.51155576,118670.0,118660.0,1.000437]
[1754949931935,0.51155576,118670.0,118660.0,0.91601]
[1754949932333,0.87235576,118670.0,118660.0,0.79774]
[1754949932528,0.51155576,118670.0,118660.0,0.882007]
[1754949932827,0.87235576,118670.0,118660.0,0.84769]
[1754949933335,0.87235576,118670.0,118660.0,0.87052]
[1754949933635,0.87235576,118670.0,118660.0,0.08875]
[1754949934630,0.87235576,118670.0,118660.0,0.0021]
[1754949934833,0.87235576,118670.0,118640.0,0.15126552]
[1754949934834,0.0842741,118650.0,118640.0,0.15126552]
[1754949935139,1.17927582,118650.0,118640.0,0.15126552]
[1754949935726,0.0842812,118640.0,118630.0,1.05263057]
[1754949935925,0.81848292,118640.0,118630.0,0.88405697]
[1754949936134,0.81858292,118640.0,118630.0,1.01637527]
[1754949936322,0.81858292,118640.0,118630.0,0.97933527]
[1754949936529,0.81858292,118640.0,118630.0,1.01637527]
[1754949936727,0.51157706,118640.0,118630.0,1.01637527]
[1754949936927,0.51157706,118640.0,118630.0,1.01937527]
[1754949937733,0.87237706,118640.0,118630.0,0.93508697]
[1754949937929,0.87237706,118640.0,118630.0,1.02337527]
[1754949938128,0.51157706,118640.0,118630.0,1.02341527]
[1754949938530,0.87237706,118640.0,118630.0,1.02341527]
[1754949939642,1.17938292,118640.0,118630.0,0.14352697]
[1754949939832,1.17938292,118640.0,118630.0,0.12035697]
[1754949940531,1.17938292,118640.0,118630.0,0.10648697]
[1754949940731,1.17938292,118640.0,118630.0,0.1733683]
[1754949940940,1.17938292,118640.0,118630.0,0.0071]
[1754949942941,1.97498292,118640.0,118630.0,0.0071]
[1754949944243,1.97498292,118640.0,118630.0,0.04115]
[1754949944839,1.17938292,118640.0,118630.0,0.04115]
[1754949945041,1.17938292,118640.0,118630.0,0.05705]
[1754949945234,1.17938292,118640.0,118630.0,0.1780383]
[1754949945440,1.17938292,118640.0,118630.0,0.09375]
[1754949945639,1.17938292,118640.0,118630.0,0.1780383]
[1754949945846,1.17938292,118640.0,118630.0,0.2012083]
[1754949946248,1.17938292,118640.0,118630.0,0.11692]
[1754949946553,1.17938292,118640.0,118630.0,0.07988]
[1754949946946,1.17938292,118640.0,118630.0,0.023]
[1754949947147,1.17938292,118640.0,118630.0,0.0071]
[1754949947953,1.17938292,118640.0,118590.0,0.51206552]
[1754949947954,0.0843096,118600.0,118590.0,0.51206552]
[1754949948161,0.51150546,118600.0,118590.0,1.0831313]
[1754949948652,0.51150546,118600.0,118590.0,1.4439313]
[1754949949259,0.51150546,118600.0,118590.0,1.4509313]
[1754949949455,0.51160546,118600.0,118590.0,1.4510313]
[1754949949959,0.51160546,118600.0,118590.0,1.4470313]
[1754949950459,0.51160546,118600.0,118590.0,1.4480313]
[1754949953358,0.51160546,118600.0,118590.0,0.6525513]
[1754949953556,0.51160546,118600.0,118590.0,1.4480713]
[1754949953858,0.51160546,118600.0,118590.0,1.0872713]
[1754949955762,0.81861132,118600.0,118590.0,0.2074356]
[1754949955962,0.81861132,118600.0,118590.0,1.0029156]
[1754949956262,0.81861132,118600.0,118590.0,0.1271467]
[1754949956450,0.81861132,118600.0,118590.0,0.9560667]
[1754949956648,0.81861132,118600.0,118590.0,0.9699367]
[1754949956863,0.81861132,118600.0,118590.0,1.0029867]
[1754949960954,0.81861132,118600.0,118590.0,0.91867]
[1754949961655,0.81861132,118600.0,118590.0,0.12319]
[1754949962055,0.95861132,118600.0,118590.0,0.02]
[1754949963062,0.95861132,118600.0,118590.0,0.0041]
[1754949965463,0.71920819,118590.0,118580.0,1.3167439]